Cogmind - Beta 11.1 @@@ ROGUE MODE // 2022.05.02 @ 03:07:56 Player: Olga Result: Destroyed by S-43 Plague with Heavy Machine Gun Performance ------------- Evolutions (7) 3500 Regions Visited (11) 2200 Robots Destroyed (2) 10 Value Destroyed (33) 33 Prototype IDs (0) 0 Alien Tech Used (0) 0 Bonus (2325) 2325 TOTAL SCORE: 8068 Bonus ------- Pacifist 1325 Entered DSFs 1000 Cogmind --------- Core Integrity 0/1300 Matter 300/300 Energy 98/100 System Corruption 3% Temperature Cool (0) Movement Core (50) Location -3/Research Parts ------- > --- POWER (1) -------- (None) > --- PROPULSION (4) --- (None) > --- UTILITY (14) ----- Machine Analyzer Terrain Scan Processor > --- WEAPON (2) ------- (None) > --- INVENTORY (5) ---- Light Angular Momentum Engine Advanced Sensor Array Improved Reaction Control System System Shield Authchip [Processor] Peak State ------------ > --- POWER ------------ (None) > --- PROPULSION ------- (None) > --- UTILITY ---------- Machine Analyzer Advanced Signal Interpreter Terrain Scan Processor Terrain Scan Processor Authchip [Propulsion] > --- WEAPON ----------- Powered Hammer > --- INVENTORY -------- Light Angular Momentum Engine Advanced Sensor Array Improved Reaction Control System System Shield Authchip [Processor] [Rating: 22] Favorites ----------- Power None Propulsion None Utility Terrain Scan Processor Processor Terrain Scan Processor Hackware Authchip [Propulsion] Weapon Powered Hammer Impact Weapon Powered Hammer Build | -11 -10 -10 -9 -8 -7 -7 -6 -5 -5 -4 -3 ------- Run | Scr Mat Min Mat Mat Fac DSF Fac Fac DSF Fac Res Slots Evolved 14 | . . . 2 2 2 . 2 2 . 2 2 Power . | . . . . . . . . . . . . Propulsion 2 | . . . . . 2 . . . . . . Utility 12 | . . . 2 2 . . 2 2 . 2 2 Weapon . | . . . . . . . . . . . . Parts Attached 7 | . . . . . . 1 4 . . . 2 Power . | . . . . . . . . . . . . Engine . | . . . . . . . . . . . . Core . | . . . . . . . . . . . . Reactor . | . . . . . . . . . . . . Propulsion . | . . . . . . . . . . . . Treads . | . . . . . . . . . . . . Leg . | . . . . . . . . . . . . Wheel . | . . . . . . . . . . . . Hover . | . . . . . . . . . . . . Flight . | . . . . . . . . . . . . Utility 5 | . . . . . . . 3 . . . 2 Device . | . . . . . . . . . . . . Storage . | . . . . . . . . . . . . Processor 4 | . . . . . . . 3 . . . 1 Hackware 1 | . . . . . . . . . . . 1 Protection . | . . . . . . . . . . . . Artifact . | . . . . . . . . . . . . Weapon 2 | . . . . . . 1 1 . . . . Energy Gun . | . . . . . . . . . . . . Energy Cannon . | . . . . . . . . . . . . Ballistic Gun . | . . . . . . . . . . . . Ballistic Cannon . | . . . . . . . . . . . . Launcher . | . . . . . . . . . . . . Special Weapon . | . . . . . . . . . . . . Impact Weapon 2 | . . . . . . 1 1 . . . . Slashing Weapon . | . . . . . . . . . . . . Piercing Weapon . | . . . . . . . . . . . . Special Melee Weapon . | . . . . . . . . . . . . Unidentified Prototypes . | . . . . . . . . . . . . Parts Lost 4 | . . . . . . . . . . . 4 Power . | . . . . . . . . . . . . Propulsion . | . . . . . . . . . . . . Utility 3 | . . . . . . . . . . . 3 Weapon 1 | . . . . . . . . . . . 1 Highest Loss Streak 4 | . . . . . . . . . . . 4 To Critical Strikes . | . . . . . . . . . . . . Average Slot Usage (%) 10 | . . . . . . 4 19 23 23 21 18 Processor 7 | . . . . . . . 13 17 17 15 14 Impact Weapon 2 | . . . . . . 4 6 5 5 5 1 Naked Turns 273 | . 54 31 83 80 1 24 . . . . . Heaviest Build 3 | . . . . . . 2 3 3 3 3 3 Greatest Support 3 | 3 3 3 3 3 3 3 3 3 3 3 3 Greatest Overweight (x) . | . . . . . . . . . . . . Average Overweight (x) . | . . . . . . . . . . . . Largest Inventory Capacity 5 | . 5 5 5 5 5 5 5 5 5 5 5 Average Capacity 5 | . 5 5 5 5 5 5 5 5 5 5 5 Most Carried 5 | . 5 5 5 5 5 5 5 5 5 5 5 Average Carried 4 | . 5 5 5 4 5 4 3 5 4 5 4 Final Capacity 5 | 5 5 5 5 5 5 5 5 5 5 5 5 Final Carried 5 | 5 5 5 5 5 5 3 5 5 5 5 5 Class Distribution -------------------- 100% | Mutant Dominant Class ---------------- Mutant | -10/Materials Mutant | -10/Mines Mutant | -9/Materials Mutant | -8/Materials Mutant | -7/Factory Mutant | -7/DSF Mutant | -6/Factory Mutant | -5/Factory Mutant | -5/DSF Mutant | -4/Factory Mutant | -3/Research Resources | -11 -10 -10 -9 -8 -7 -7 -6 -5 -5 -4 -3 ----------- Run | Scr Mat Min Mat Mat Fac DSF Fac Fac DSF Fac Res Matter Collected 248 | 200 . . . . . 10 23 . . . 15 Remotely . | . . . . . . . . . . . . Salvage Created 76 | . . . . . . . 23 . . . 53 Parts . | . . . . . . . . . . . . Haulers Intercepted . | . . . . . . . . . . . . Recyclers Shooed . | . . . . . . . . . . . . Parts Field Recycled . | . . . . . . . . . . . . Retrieved Matter . | . . . . . . . . . . . . Parts Self-Destructed . | . . . . . . . . . . . . Prevented . | . . . . . . . . . . . . Kills | -11 -10 -10 -9 -8 -7 -7 -6 -5 -5 -4 -3 ------- Run | Scr Mat Min Mat Mat Fac DSF Fac Fac DSF Fac Res Combat Hostiles Destroyed . | . . . . . . . . . . . . Classes Destroyed 2 | . . . . . . . 1 . . . 1 Builder 1 | . . . . . . . 1 . . . . Mechanic 1 | . . . . . . . . . . . 1 Best Kill Streak 1 | . . . . . . . 1 . . . 1 Combat Bots Only . | . . . . . . . . . . . . Max Kills in Single Turn 1 | . . . . . . . 1 . . . 1 Gunslinging . | . . . . . . . . . . . . Exploded . | . . . . . . . . . . . . Melee . | . . . . . . . . . . . . Uniques/NPCs Destroyed . | . . . . . . . . . . . . Combat | -11 -10 -10 -9 -8 -7 -7 -6 -5 -5 -4 -3 -------- Run | Scr Mat Min Mat Mat Fac DSF Fac Fac DSF Fac Res Damage Taken 2509 | . . . 256 317 . . . . . 484 1452 Core 2294 | . . . 256 317 . . . . . 416 1305 Absorbed by Shields . | . . . . . . . . . . . . Core Remaining (%) 80 | 100 . 100 36 42 . 100 100 . 100 63 . Volleys Fired . | . . . . . . . . . . . . Largest . | . . . . . . . . . . . . Hottest . | . . . . . . . . . . . . Shots Fired . | . . . . . . . . . . . . Gun . | . . . . . . . . . . . . Cannon . | . . . . . . . . . . . . Launcher . | . . . . . . . . . . . . Special . | . . . . . . . . . . . . Kinetic . | . . . . . . . . . . . . Thermal . | . . . . . . . . . . . . Explosive . | . . . . . . . . . . . . Electromagnetic . | . . . . . . . . . . . . Robot Hit Streak . | . . . . . . . . . . . . Robot Miss Streak . | . . . . . . . . . . . . Penetration Max . | . . . . . . . . . . . . Secondary Targets . | . . . . . . . . . . . . Shots Hit Robots 3 | . . . . . . . 1 . . 1 1 Core Hits 3 | . . . 1 2 . . . . . . . Critical Kills . | . . . . . . . . . . . . Critical Parts Destroyed . | . . . . . . . . . . . . Critical Strikes . | . . . . . . . . . . . . Melee Attacks 4 | . . . . . . . 1 . . 2 1 Impact 4 | . . . . . . . 1 . . 2 1 Slashing . | . . . . . . . . . . . . Piercing . | . . . . . . . . . . . . Sneak Attacks 2 | . . . . . . . 1 . . . 1 Combat Hostiles . | . . . . . . . . . . . . Follow-up Attacks . | . . . . . . . . . . . . Damage Inflicted 270 | . . . 18 29 . . 55 . . 30 138 Guns . | . . . . . . . . . . . . Cannons . | . . . . . . . . . . . . Explosions . | . . . . . . . . . . . . Melee 203 | . . . . . . . 55 . . 29 119 Ramming 67 | . . . 18 29 . . . . . 1 19 Kinetic . | . . . . . . . . . . . . Thermal . | . . . . . . . . . . . . Explosive . | . . . . . . . . . . . . Electromagnetic . | . . . . . . . . . . . . Impact 203 | . . . . . . . 55 . . 29 119 Slashing . | . . . . . . . . . . . . Piercing . | . . . . . . . . . . . . Highest Corruption 3 | . . . . 1 . . . . . 1 3 Average Corruption 1 | . . . . 1 . . . . . 1 2 Corruption Purged . | . . . . . . . . . . . . Corruption Blocked . | . . . . . . . . . . . . Effects 2 | . . . . 1 . . . . . . 1 Message Errors 1 | . . . . 1 . . . . . . . Data Loss (minor) 1 | . . . . . . . . . . . 1 Overload Shots . | . . . . . . . . . . . . Overflow Damage 122 | . . . . . . . 33 . . . 89 Projectiles . | . . . . . . . . . . . . Explosions . | . . . . . . . . . . . . Melee 122 | . . . . . . . 33 . . . 89 Knockbacks . | . . . . . . . . . . . . Impact . | . . . . . . . . . . . . Kinetic . | . . . . . . . . . . . . Secondary . | . . . . . . . . . . . . Self-Inflicted Damage 30 | . . . 9 12 . . . . . . 9 Shots . | . . . . . . . . . . . . Rammed 16 | . . . 3 10 . . . . . 1 2 Targets Rammed 16 | . . . 3 10 . . . . . 1 2 Kicked . | . . . . . . . . . . . . Crushed . | . . . . . . . . . . . . Highest Temperature . | . . . . . . . . . . . . Average Temperature . | . . . . . . . . . . . . Received Heat Transfer 364 | . . . 111 36 . . . . . 187 30 Siege Activations . | . . . . . . . . . . . . Robots Corrupted . | . . . . . . . . . . . . Combat Hostiles . | . . . . . . . . . . . . Parts Fried 3 | . . . . . . . 2 . . . 1 Impact Corruptions 2 | . . . . . . . 1 . . . 1 Robots Melted . | . . . . . . . . . . . . Combat Hostiles . | . . . . . . . . . . . . Parts Melted . | . . . . . . . . . . . . Heat Transferred . | . . . . . . . . . . . . Parts Sabotaged . | . . . . . . . . . . . . Parts Stolen . | . . . . . . . . . . . . Parts Stripped . | . . . . . . . . . . . . Power Chain Reactions . | . . . . . . . . . . . . Missiles Intercepted . | . . . . . . . . . . . . Alert | -11 -10 -10 -9 -8 -7 -7 -6 -5 -5 -4 -3 ------- Run | Scr Mat Min Mat Mat Fac DSF Fac Fac DSF Fac Res Peak Influence 147 | . 15 5 124 112 50 38 69 33 23 121 147 Initial 63 | . . 5 1 52 50 38 19 33 23 11 63 Average 47 | . 7 5 45 71 50 38 30 33 23 60 82 Maximum Alert Level . | . . . . . . . . . . . . Low Security (%) 100 | . 100 100 100 100 100 100 100 100 100 100 100 Level 1 . | . . . . . . . . . . . . Level 2 . | . . . . . . . . . . . . Level 3 . | . . . . . . . . . . . . Level 4 . | . . . . . . . . . . . . Level 5 . | . . . . . . . . . . . . High Security . | . . . . . . . . . . . . Max Security . | . . . . . . . . . . . . Squads Dispatched 9 | . . . 1 1 . 1 2 . . 1 3 Investigation 4 | . . . 1 1 . . 1 . . . 1 Extermination . | . . . . . . . . . . . . Reinforcement 5 | . . . . . . 1 1 . . 1 2 Assault . | . . . . . . . . . . . . Garrison . | . . . . . . . . . . . . Intercept . | . . . . . . . . . . . . Searches Triggered . | . . . . . . . . . . . . Construction Impeded . | . . . . . . . . . . . . Haulers Reinforced . | . . . . . . . . . . . . Active Scanning Responses . | . . . . . . . . . . . . Cargo Convoy Interrupts . | . . . . . . . . . . . . Stealth | -11 -10 -10 -9 -8 -7 -7 -6 -5 -5 -4 -3 --------- Run | Scr Mat Min Mat Mat Fac DSF Fac Fac DSF Fac Res Distress Signals 2 | . . . . . . . . . . . 2 Communications Jammed . | . . . . . . . . . . . . Distress Signals . | . . . . . . . . . . . . Times Spotted 47 | . 1 . 14 5 . . 1 . 1 6 19 Peak Tracking Total 18 | . 1 . 14 7 . . 1 . 1 6 18 Tactical Retreats 3 | . . . 1 . . . . . . 1 1 Traps | -11 -10 -10 -9 -8 -7 -7 -6 -5 -5 -4 -3 ------- Run | Scr Mat Min Mat Mat Fac DSF Fac Fac DSF Fac Res Traps Triggered 2 | . . . . . . 1 . . . . 1 Indirectly . | . . . . . . . . . . . . Trap Hack Attempts . | . . . . . . . . . . . . Triggered . | . . . . . . . . . . . . Disarmed . | . . . . . . . . . . . . Reprogrammed . | . . . . . . . . . . . . Reused . | . . . . . . . . . . . . Traps Extracted . | . . . . . . . . . . . . Installed . | . . . . . . . . . . . . Triggered . | . . . . . . . . . . . . Machines | -11 -10 -10 -9 -8 -7 -7 -6 -5 -5 -4 -3 ---------- Run | Scr Mat Min Mat Mat Fac DSF Fac Fac DSF Fac Res Machines Disabled . | . . . . . . . . . . . . Max in Single Turn . | . . . . . . . . . . . . Garrison Access 1 | . . . . . . . 1 . . . . Machines Sabotaged . | . . . . . . . . . . . . Garrisons Compromised . | . . . . . . . . . . . . Overloaded Fab Kills . | . . . . . . . . . . . . Hacking | -11 -10 -10 -9 -8 -7 -7 -6 -5 -5 -4 -3 --------- Run | Scr Mat Min Mat Mat Fac DSF Fac Fac DSF Fac Res Machines Accessed 16 | . . . 4 2 1 . 4 1 . 3 1 Terminals 15 | . . . 4 2 1 . 3 1 . 3 1 Fabricators . | . . . . . . . . . . . . Repair Stations . | . . . . . . . . . . . . Recycling Units . | . . . . . . . . . . . . Scanalyzers . | . . . . . . . . . . . . Garrison Access 1 | . . . . . . . 1 . . . . Total Hacks 41 | . . . 12 7 1 . 8 1 . 9 3 Successful 17 | . . . 4 1 1 . 4 1 . 5 1 Failed 24 | . . . 8 6 . . 4 . . 4 2 Catastrophic 3 | . . . 1 1 . . . . . 1 . Database Lockouts . | . . . . . . . . . . . . Manual 26 | . . . 10 7 . . 1 . . 7 1 Terminals 39 | . . . 12 7 1 . 6 1 . 9 3 Fabricators . | . . . . . . . . . . . . Repair Stations . | . . . . . . . . . . . . Recycling Units . | . . . . . . . . . . . . Scanalyzers . | . . . . . . . . . . . . Garrison Access 2 | . . . . . . . 2 . . . . Terminal Hacks 14 | . . . 4 1 1 . 3 1 . 3 1 Open DSF 2 | . . . . . 1 . . 1 . . . Level Access Points 1 | . . . . . . . . . . 1 . Branch Access Points 2 | . . . 1 . . . 1 . . . . Emergency Access Points 3 | . . . 1 . . . 1 . . . 1 Terminal Index 4 | . . . 1 1 . . 1 . . 1 . Registered Components 1 | . . . . . . . . . . 1 . Zone Layout 1 | . . . 1 . . . . . . . . Fabricator Hacks . | . . . . . . . . . . . . Repair Station Hacks . | . . . . . . . . . . . . Recycling Unit Hacks . | . . . . . . . . . . . . Scanalyzer . | . . . . . . . . . . . . Garrison Access Hacks 1 | . . . . . . . 1 . . . . Seal Access 1 | . . . . . . . 1 . . . . Unauthorized Hacks 2 | . . . . . . . . . . 2 . Terminals 2 | . . . . . . . . . . 2 . Botnet 2 | . . . . . . . . . . 2 . Fabricators . | . . . . . . . . . . . . Repair Stations . | . . . . . . . . . . . . Recycling Units . | . . . . . . . . . . . . Scanalyzers . | . . . . . . . . . . . . Garrison Access . | . . . . . . . . . . . . Data Cores Recovered . | . . . . . . . . . . . . Used . | . . . . . . . . . . . . Hacking Detections 10 | . . . 3 2 . . 2 . . 2 1 Full Trace Events 5 | . . . 2 1 . . 1 . . . 1 Feedback Events . | . . . . . . . . . . . . Feedback Blocked . | . . . . . . . . . . . . Robot Schematics Acquired . | . . . . . . . . . . . . Robots Built . | . . . . . . . . . . . . Authchips . | . . . . . . . . . . . . Time . | . . . . . . . . . . . . Total Robot Build Rating . | . . . . . . . . . . . . Part Schematics Acquired . | . . . . . . . . . . . . Parts Built . | . . . . . . . . . . . . Authchips . | . . . . . . . . . . . . Time . | . . . . . . . . . . . . Total Part Build Rating . | . . . . . . . . . . . . Parts Repaired . | . . . . . . . . . . . . Time . | . . . . . . . . . . . . Parts Recycled . | . . . . . . . . . . . . Recycled Matter . | . . . . . . . . . . . . Retrieved Matter . | . . . . . . . . . . . . Retrieved Components . | . . . . . . . . . . . . Parts Scanalyzed . | . . . . . . . . . . . . Part Schematics Acquired . | . . . . . . . . . . . . Parts Damaged . | . . . . . . . . . . . . Bothacking | -11 -10 -10 -9 -8 -7 -7 -6 -5 -5 -4 -3 ------------ Run | Scr Mat Min Mat Mat Fac DSF Fac Fac DSF Fac Res Used RIF Installer . | . . . . . . . . . . . . Robots Hacked . | . . . . . . . . . . . . Non-combat . | . . . . . . . . . . . . Combat . | . . . . . . . . . . . . Robot Hacks Applied . | . . . . . . . . . . . . Relay Couplers Released . | . . . . . . . . . . . . Fabnet Peak Effective % . | . . . . . . . . . . . . Robots Rewired . | . . . . . . . . . . . . Allies Hacked . | . . . . . . . . . . . . Hacks Repelled . | . . . . . . . . . . . . Allies | -11 -10 -10 -9 -8 -7 -7 -6 -5 -5 -4 -3 -------- Run | Scr Mat Min Mat Mat Fac DSF Fac Fac DSF Fac Res Total Allies 2 | . . 2 . . . . . . . . . Largest Group 2 | . . 2 . . . . . . . . . Highest-Rated Group 42 | . . 42 . . . . . . . . . Highest-Rated Ally 31 | . . 31 . . . . . . . . . Total Orders . | . . . . . . . . . . . . Ally Attacks . | . . . . . . . . . . . . Total Damage . | . . . . . . . . . . . . Kills . | . . . . . . . . . . . . Allies Corrupted . | . . . . . . . . . . . . Allies Melted . | . . . . . . . . . . . . Intel | -11 -10 -10 -9 -8 -7 -7 -6 -5 -5 -4 -3 ------- Run | Scr Mat Min Mat Mat Fac DSF Fac Fac DSF Fac Res Robot Analysis Total . | . . . . . . . . . . . . Derelict Logs Recovered . | . . . . . . . . . . . . Drone Launches . | . . . . . . . . . . . . Drone Recoveries . | . . . . . . . . . . . . Exploration | -11 -10 -10 -9 -8 -7 -7 -6 -5 -5 -4 -3 ------------- Run | Scr Mat Min Mat Mat Fac DSF Fac Fac DSF Fac Res Turns Passed 632 | . 54 31 83 80 1 63 94 12 16 113 85 Spaces Moved 1131 | 1 102 62 160 136 3 85 165 23 30 212 152 Core 1131 | 1 102 62 160 136 3 85 165 23 30 212 152 Treads . | . . . . . . . . . . . . Legs . | . . . . . . . . . . . . Wheels . | . . . . . . . . . . . . Hover . | . . . . . . . . . . . . Flight . | . . . . . . . . . . . . Fastest Speed 50 | 50 50 50 50 50 50 50 50 50 50 50 50 Average Speed 50 | 50 50 50 50 50 50 50 50 50 50 50 50 Slowest Speed 50 | 50 50 50 50 50 50 50 50 50 50 50 50 Overloaded Moves . | . . . . . . . . . . . . Propulsion Burnouts . | . . . . . . . . . . . . Robots Hopped . | . . . . . . . . . . . . Cave-ins Triggered . | . . . . . . . . . . . . Exploration Rate (%) 22 | 2 28 18 24 18 . 83 6 1 42 9 11 Regions Visited 11 Branch Regions 1 Pre-discovered Areas . | . . . . . . . . . . . . Known Exits Taken 4 | . . . . . 1 . 1 1 . 1 . Unknown Exits Taken 5 | 1 1 1 1 1 . . . . . . . Scrap Searched 1 | . . 1 . . . . . . . . . Spaces Dug . | . . . . . . . . . . . . Terrain Destroyed . | . . . . . . . . . . . . Melee . | . . . . . . . . . . . . Projectile . | . . . . . . . . . . . . AOE . | . . . . . . . . . . . . Terrain Rammed . | . . . . . . . . . . . . Walls Destroyed . | . . . . . . . . . . . . Machines Disabled . | . . . . . . . . . . . . Actions | -11 -10 -10 -9 -8 -7 -7 -6 -5 -5 -4 -3 --------- Run | Scr Mat Min Mat Mat Fac DSF Fac Fac DSF Fac Res Total 1180 | . 104 61 162 147 2 106 172 22 31 214 159 Wait 4 | . 3 . . . . . . . . . 1 Move 1120 | . 101 61 159 135 2 84 164 22 29 211 152 Hop . | . . . . . . . . . . . . Pick Up 7 | . . . . 1 . 2 2 . 1 . 1 Fast Attach 6 | . . . . . . 1 4 . . . 1 Attach 1 | . . . . . . . . . . . 1 Detach . | . . . . . . . . . . . . Swap . | . . . . . . . . . . . . Drop 7 | . . . . 1 . 4 1 . 1 . . Fire . | . . . . . . . . . . . . Melee 4 | . . . . . . . 1 . . 2 1 Ram 16 | . . . 3 10 . . . . . 1 2 Kick . | . . . . . . . . . . . . Crush . | . . . . . . . . . . . . Escape Stasis 15 | . . . . . . 15 . . . . . Rewire . | . . . . . . . . . . . . Trap . | . . . . . . . . . . . . Miscellaneous . | . . . . . . . . . . . . Route ------- -11/Scrapyard -10/Materials -10/Mines -9/Materials (discovered 2 exits: *Mat / Min) -8/Materials -7/Factory -7/DSF -6/Factory (discovered 3 exits: *Fac / Low x2) -5/Factory -5/DSF -4/Factory (discovered 4 exits: *Res x4) -3/Research History --------- Turn | Location | Event 1 | -11/Scrapyard | Released all parts (6) 1 | -11/Scrapyard | Discovered new exit (range 0) 1 | -11/Scrapyard | Entered Materials 49 | -10/Materials | Discovered new exit (range 7) 55 | -10/Materials | Entered Mines 81 | -10/Mines | Discovered new exit (range 11) 86 | -10/Mines | Entered Materials 86 | -9/Materials | Evolved 2 slots: Utility x2 111 | -9/Materials | Identified exit to Mines 160 | -9/Materials | Discovered new exit (range 16) 161 | -9/Materials | Core integrity fell below 50% 169 | -9/Materials | Entered another Materials area 169 | -8/Materials | Evolved 2 slots: Utility x2 244 | -8/Materials | Discovered new exit (range 10) 245 | -8/Materials | Core integrity fell below 50% 249 | -8/Materials | Entered Factory 249 | -7/Factory | Evolved 2 slots: Propulsion x2 250 | -7/Factory | Identified exit to DSF 250 | -7/Factory | Entered DSF 251 | -7/DSF | Joined Warlord attack on 0b10 via DSF 276 | -7/DSF | Additional patrols routed to DSF 293 | -7/DSF | Discovered new exit (range 15) 313 | -7/DSF | Entered Factory 313 | -6/Factory | Evolved 2 slots: Utility x2 317 | -6/Factory | Build established: Mutant 340 | -6/Factory | 6 allies followed out of DSF 395 | -6/Factory | Identified exit to Lower Caves 400 | -6/Factory | Discovered new exit (range 12) 406 | -6/Factory | Identified exit to Factory 407 | -6/Factory | Entered another Factory area 407 | -5/Factory | Evolved 2 slots: Utility x2 418 | -5/Factory | Identified exit to DSF 419 | -5/Factory | Entered DSF 428 | -5/DSF | Discovered new exit (range 15) 435 | -5/DSF | Identified exit to Factory 435 | -5/DSF | Entered Factory 435 | -4/Factory | Evolved 2 slots: Utility x2 536 | -4/Factory | Identified exit to Research 548 | -4/Factory | Entered Research 548 | -3/Research | Evolved 2 slots: Utility x2 598 | -3/Research | Core integrity fell below 50% 609 | -3/Research | Spotted B-86 Titan 619 | -3/Research | Core integrity fell below 20% 633 | -3/Research | Destroyed by S-43 Plague with Heavy Machine Gun Last Messages --------------- 00608_ Destabilizing: Core damaged (-39). 00614_ K-01 Serf destroyed. 00618_ System corrupted: Component data lost. 00618_ Terrain Scan Processor destroyed. 00618_ Penetrated by Slug. 00619_ O-24 Administrator: "IFF HANDSHAKE FAILED. SECURING TERMINAL." 00621_ Connecting with Terminal... >>Access(Emergency) Found 2 emergency access doors: (175,24) (172,19) Map updated. 00621_ ALERT: Suspicious activity at Terminal R006. Dispatching Investigation squad. 00625_ ALERT: Hostiles spotted, dispatching reinforcements to Terminal R005. 00626_ >> Machine Analyzer network decryption results: 00626_ Scanalyzer x1 00629_ Penetrated by Slug. 00629_ Slug penetrates Wall. Map ----- +----------------------------------------------------+ | | | | | | | | | | | | | | | | | | | | | | | | | | | | | | | | | ?????????????????????????????????????????????????? | | ?????????????????????????????????????????????????? | | ?????????????????????????????????????????????????? | | ?????????????????????????????????????????????????? | | ?????????????????????????????????????????????????? | | ????????????????????############?????????????????? | | ????????????????????+ #?????????????????? | | ????????????????????# #?????????????????? | | +#############+###### ##+???????????????? | | @ H???????? | | ?? ######## #??????????????? | | ???? w % #???????????????????????? | | ?????? w w #???????????????????????? | | ???????# ############s####???????????????????????? | | ???????# #?????# #?????????????????????????? | | ????####/#######]|| ] #?????????????????????????? | | ????# ##]|| #?????????????????????????? | | ????# ##]|! #?????????????????????????? | | ????# !! ## #####?????????????????????? | | ##### !! ## / #??????T??????????????? | | # ## "" ### #?????????????????????? | | # ##! S"" ?# #?????????????????????? | | # ## "" #?# #?????????????????????? | | + ] ## #?# #?????????????????????? | | ############ ###/####??????????????????? | | #?? ??######### #??????????????????? | | #? ???????????# #??????????????????? | | #? """ ??????????# "" #???#??????????????? | | # """ ??????????# "T #?? #?""???????????? | | # """ #?????????# "" #?? #?""???????????? | | + """ #?????????# #?? #?"T???????????? | | # """ #?????????# #?? #?""???????????? | | # #?????????# ### ##""???????????? | | #? #?????????# # #?????????????? | +----------------------------------------------------+ Best States ------------- Heat Dissipation 46 Energy Generation 5 Energy Capacity 100 Matter Stores 300 Matter Capacity 300 Sight Range 16 Terrain Scan Density 160 Evasion (%) 50 Authchip Count 2 Item Schematics ----------------- None Robot Schematics ------------------ None Fabricated ------------ Nothing Alien Tech Used ----------------- None Achievements -------------- None Challenges ------------ None Game ------ Seed ParticleMediumSword Manual? 0 Play Time 00:16:44 Cumulative 152.0 hours Start 2022.05.02 @ 02:53:52 End 2022.05.02 @ 03:07:56 Sessions 1 Manual Loads 0 Difficulty Rogue Special Mode None Game No. 241 Rogue 240 Adventurer 0 Explorer 1 Win Type - Total 7 Types 7/0/0/0/0/0/0/0/0 Lore% 60 Gallery% 62 Achievement% 51 Wizard Run 0 Options --------- ASCII 1 Keyboard 0 Movement Vi Keybinds 0 Fullscreen 1 Font 18/SmallcapsGlow Map View 76x50 Tactical HUD 1 Map Filters NONE Filters NONE Steam 1 RUN: 1ae6480e-e0a3-4994-9691-a62459f04314